fUST/lending_fUST_20250511
["ID","MTS","AMOUNT","RATE_DAILY","PERIOD"]
[360719532,1746951055662,-174.00646708,8.028e-05,2]
[360719535,1746951055674,-325.99353292,8.028e-05,2]
[360719537,1746951055683,-500.0,8.028e-05,2]
[360719539,1746951055692,-500.0,8.028e-05,2]
[360719542,1746951055701,-500.0,8.028e-05,2]
[360719545,1746951055711,-500.0,8.028e-05,2]
[360719547,1746951055720,-435.32079292,8.028e-05,2]
[360719551,1746951055730,-444.76270921,8.033e-05,2]
[360719554,1746951055739,-400.0,8.034e-05,2]
[360719557,1746951055748,-432.46857763,8.034e-05,2]
[360719559,1746951055758,-518.12,8.034e-05,2]
[360719562,1746951055769,-400.0,8.034e-05,2]
[360719566,1746951055779,-994.23,8.034e-05,2]
[360719568,1746951055788,-400.0,8.034e-05,2]
[360719572,1746951055798,-411.22639626,8.034e-05,2]
[360719574,1746951055807,-1522.18,8.034e-05,2]
[360719576,1746951055817,-400.0,8.034e-05,2]
[360719578,1746951055827,-1815.68,8.034e-05,2]
[360719580,1746951055836,-488.06,8.034e-05,2]
[360719582,1746951055846,-400.0,8.034e-05,2]
[360719584,1746951055858,-400.0,8.034e-05,2]
[360719586,1746951055868,-294.60322188,8.034e-05,2]
[360719588,1746951055877,-400.0,8.034e-05,2]
[360719591,1746951055887,-400.0,8.034e-05,2]
[360719592,1746951055897,-719.0,8.034e-05,2]
[360719594,1746951055906,-496.36,8.034e-05,2]
[360719596,1746951055916,-400.0,8.034e-05,2]
[360719599,1746951055925,-409.14051634,8.034e-05,2]
[360719601,1746951055939,-499.05357999,8.034e-05,2]
[360719603,1746951055949,-464.71,8.034e-05,2]
[360719605,1746951055959,-182.702,8.035e-05,2]
[360719607,1746951055968,-400.0,8.035e-05,2]
[360719609,1746951055978,-400.0,8.035e-05,2]
[360719611,1746951055989,-400.0,8.035e-05,2]
[360719613,1746951055999,-197.69529643,8.035e-05,2]
[360719615,1746951056008,-400.0,8.035e-05,2]
[360719617,1746951056017,-527.1,8.035e-05,2]
[360719619,1746951056026,-402.50363418,8.035e-05,2]
[360719621,1746951056036,-400.0,8.035e-05,2]
[360719623,1746951056045,-451.09,8.035e-05,2]
[360719625,1746951056055,-400.0,8.035e-05,2]
[360719627,1746951056064,-544.14,8.035e-05,2]
[360719629,1746951056073,-400.0,8.035e-05,2]
[360719630,1746951056083,-971.27,8.035e-05,2]
[360719632,1746951056092,-400.0,8.035e-05,2]
[360719635,1746951056102,-400.0,8.035e-05,2]
[360719636,1746951056111,-400.0,8.035e-05,2]
[360719638,1746951056121,-400.0,8.035e-05,2]
[360719640,1746951056130,-400.0,8.035e-05,2]
[360719643,1746951056141,-400.0,8.035e-05,2]
[360719644,1746951056150,-400.0,8.035e-05,2]
[360719647,1746951056159,-529.56,8.035e-05,2]
[360719648,1746951056169,-525.79,8.035e-05,2]
[360719650,1746951056178,-400.0,8.035e-05,2]
[360719652,1746951056187,-635.49,8.035e-05,2]
[360719655,1746951056197,-400.0,8.035e-05,2]
[360719657,1746951056206,-610.85,8.035e-05,2]
[360719658,1746951056215,-405.09,8.035e-05,2]
[360719661,1746951056224,-461.51,8.035e-05,2]
[360719663,1746951056234,-400.0,8.035e-05,2]
[360719664,1746951056244,-400.0,8.035e-05,2]
[360719667,1746951056253,-400.0,8.035e-05,2]
[360719668,1746951056262,-400.0,8.035e-05,2]
[360719671,1746951056272,-416.56,8.035e-05,2]
[360719672,1746951056281,-290.28864035,8.035e-05,2]
[360719674,1746951056291,-400.0,8.035e-05,2]
[360719676,1746951056300,-400.0,8.035e-05,2]
[360719679,1746951056309,-688.14,8.035e-05,2]
[360719681,1746951056319,-436.71,8.035e-05,2]
[360719682,1746951056328,-400.0,8.036e-05,2]
[360719685,1746951056337,-400.0,8.036e-05,2]
[360719687,1746951056347,-400.0,8.036e-05,2]
[360719689,1746951056357,-400.0,8.036e-05,2]
[360719690,1746951056366,-400.0,8.036e-05,2]
[360719693,1746951056376,-400.0,8.036e-05,2]
[360719695,1746951056386,-401.03639936,8.036e-05,2]
[360719696,1746951056395,-432.95418178,8.036e-05,2]
[360719698,1746951056405,-400.0,8.036e-05,2]
[360719701,1746951056414,-363.57761297,8.036e-05,2]
[360719702,1746951056423,-424.57,8.036e-05,2]
[360719704,1746951056432,-400.0,8.036e-05,2]
[360719706,1746951056442,-400.0,8.036e-05,2]
[360719708,1746951056451,-501.47170663,8.036e-05,2]
[360719710,1746951056460,-173.53,8.036e-05,2]
[360719712,1746951056469,-400.0,8.036e-05,2]
[360719714,1746951056478,-400.0,8.036e-05,2]
[360719716,1746951056488,-400.0,8.036e-05,2]
[360719718,1746951056497,-400.0,8.036e-05,2]
[360719720,1746951056506,-400.0,8.036e-05,2]
[360719722,1746951056516,-400.0,8.036e-05,2]
[360719724,1746951056525,-400.0,8.036e-05,2]
[360719726,1746951056534,-400.0,8.036e-05,2]
[360719728,1746951056542,-400.0,8.036e-05,2]
[360719730,1746951056551,-400.0,8.036e-05,2]
[360719732,1746951056560,-400.0,8.036e-05,2]
[360719734,1746951056569,-286.05358348,8.036e-05,2]
[360719736,1746951056579,-295.85524038,8.036e-05,2]
[360719738,1746951056588,-400.0,8.036e-05,2]
[360719740,1746951056597,-423.01,8.036e-05,2]
[360719742,1746951056606,-400.0,8.036e-05,2]
[360719744,1746951056615,-400.0,8.036e-05,2]
[360719746,1746951056624,-400.0,8.036e-05,2]
[360719748,1746951056634,-406.64322045,8.036e-05,2]
[360719750,1746951056643,-403.16948583,8.036e-05,2]
[360719752,1746951056653,-217.94885016,8.036e-05,2]
[360719754,1746951056663,-405.42268393,8.036e-05,2]
[360719756,1746951056672,-407.64055796,8.036e-05,2]
[360719758,1746951056681,-407.08906175,8.036e-05,2]
[360719760,1746951056690,-477.22,8.036e-05,2]
[360719762,1746951056699,-405.71668509,8.036e-05,2]
[360719764,1746951056708,-446.7,8.036e-05,2]
[360719766,1746951056718,-400.70315747,8.036e-05,2]
[360719768,1746951056727,-406.97453467,8.036e-05,2]
[360719770,1746951056736,-400.0,8.036e-05,2]
[360719772,1746951056746,-400.0,8.036e-05,2]
[360719774,1746951056755,-400.0,8.036e-05,2]
[360719776,1746951056765,-400.0,8.036e-05,2]
[360719778,1746951056774,-400.0,8.036e-05,2]
[360719780,1746951056783,-406.10310413,8.036e-05,2]
[360719782,1746951056793,-400.0,8.036e-05,2]
[360719784,1746951056801,-400.16433836,8.036e-05,2]
[360719786,1746951056810,-248.38318978,8.036e-05,2]
[360719788,1746951056820,-407.26228254,8.036e-05,2]
[360719790,1746951056829,-400.0,8.036e-05,2]
[360719792,1746951056839,-400.0,8.036e-05,2]
[360719794,1746951056848,-478.33450807,8.036e-05,2]
[360719796,1746951056862,-400.0,8.036e-05,2]
[360719798,1746951056872,-400.0,8.036e-05,2]
[360719800,1746951056884,-406.70858607,8.036e-05,2]
[360719803,1746951056893,-2100.96,8.036e-05,2]
[360719804,1746951056904,-403.93122925,8.036e-05,2]
[360719807,1746951056914,-400.0,8.036e-05,2]
[360719808,1746951056923,-400.0,8.036e-05,2]
[360719810,1746951056934,-404.61258279,8.036e-05,2]
[360719813,1746951056944,-411.35482706,8.036e-05,2]
[360719815,1746951056953,-1756.93,8.036e-05,2]
[360719817,1746951056963,-765.18,8.036e-05,2]
[360719818,1746951056971,-642.54,8.036e-05,2]
[360719821,1746951056981,-400.0,8.036e-05,2]
[360719822,1746951056990,-400.0,8.036e-05,2]
[360719825,1746951057000,-400.0,8.036e-05,2]
[360719826,1746951057009,-400.0,8.036e-05,2]
[360719828,1746951057018,-400.0,8.036e-05,2]
[360719830,1746951057027,-419.25,8.036e-05,2]
[360719832,1746951057037,-400.0,8.036e-05,2]
[360719834,1746951057047,-416.24,8.036e-05,2]
[360719836,1746951057056,-450.87,8.036e-05,2]
[360719838,1746951057066,-400.0,8.036e-05,2]
[360719840,1746951057075,-400.0,8.036e-05,2]
[360719842,1746951057086,-400.0,8.036e-05,2]
[360719844,1746951057095,-400.0,8.036e-05,2]
[360719846,1746951057104,-400.0,8.036e-05,2]
[360719848,1746951057115,-400.0,8.036e-05,2]
[360719851,1746951057125,-400.0,8.036e-05,2]
[360719852,1746951057135,-400.0,8.036e-05,2]
[360719854,1746951057144,-400.0,8.036e-05,2]
[360719857,1746951057154,-400.0,8.036e-05,2]
[360719858,1746951057163,-400.0,8.036e-05,2]
[360719860,1746951057173,-1041.02,8.036e-05,2]
[360719862,1746951057183,-400.0,8.036e-05,2]
[360719864,1746951057192,-400.0,8.036e-05,2]
[360719866,1746951057201,-400.0,8.036e-05,2]
[360719869,1746951057211,-400.0,8.036e-05,2]
[360719870,1746951057220,-400.0,8.036e-05,2]
[360719872,1746951057229,-956.08,8.036e-05,2]
[360719875,1746951057239,-400.0,8.037e-05,2]
[360719877,1746951057248,-400.0,8.037e-05,2]
[360719878,1746951057258,-400.0,8.037e-05,2]
[360719880,1746951057267,-400.0,8.037e-05,2]
[360719882,1746951057277,-400.0,8.037e-05,2]
[360719885,1746951057286,-400.0,8.037e-05,2]
[360719887,1746951057296,-400.0,8.037e-05,2]
[360719889,1746951057305,-404.17,8.037e-05,2]
[360719891,1746951057315,-400.0,8.037e-05,2]
[360719893,1746951057325,-400.0,8.037e-05,2]
[360719895,1746951057334,-400.0,8.038e-05,2]
[360719897,1746951057344,-400.0,8.038e-05,2]
[360719899,1746951057353,-401.83054438,8.038e-05,2]
[360719901,1746951057363,-169.86628479,8.038e-05,2]
[360719903,1746951057372,-400.0,8.038e-05,2]
[360719905,1746951057381,-400.0,8.038e-05,2]
[360719906,1746951057392,-400.0,8.038e-05,2]
[360719909,1746951057402,-400.0,8.038e-05,2]
[360719911,1746951057411,-400.0,8.038e-05,2]
[360719913,1746951057420,-400.0,8.038e-05,2]
[360719915,1746951057429,-260.99956674,8.055e-05,2]
[360719917,1746951057439,-19808.73550062,8.07e-05,2]
[360719919,1746951057453,-1555.4962902,8.07e-05,2]
[360719933,1746951125346,50338.33631,0.0002,30]
[360719934,1746951145337,288.16200006,8e-05,2]
[360719935,1746951145366,50225.71496375,8e-05,2]
[360719936,1746951210915,239.51524841,0.00022,30]
[360719937,1746951259021,300.0,0.00022,30]
[360719938,1746951269837,1000.0,0.00022,30]
[360719939,1746951329677,180.59572326,7.91e-05,2]
[360719940,1746951379444,152.97,0.000216,31]
[360719941,1746951379507,152.97,0.000216,31]
[360719942,1746951379558,152.97,0.000216,31]
[360719943,1746951379620,152.97,0.000216,31]
[360719944,1746951379691,152.97,0.000216,31]
[360719945,1746951379756,152.97,0.000216,31]
[360719946,1746951379823,152.97,0.000216,31]
[360719947,1746951379870,152.97,0.000216,31]
[360719948,1746951379936,152.97,0.000199,31]
[360719949,1746951379998,152.97,0.000199,31]
[360719950,1746951380201,152.97,0.000199,31]
[360719951,1746951380244,152.97,0.000199,31]
[360719952,1746951380285,152.97,0.000199,31]
[360719953,1746951380325,152.97,0.000199,31]
[360719954,1746951380369,152.97,0.000199,31]
[360719955,1746951380409,152.97,0.000199,31]
[360719958,1746951722581,300.0,8.02e-05,2]
[360719960,1746951756354,-288.16200006,8.02e-05,2]
[360719961,1746951756928,-193.36269615,8.02e-05,2]
[360719962,1746951756951,-94.79930391,8.02e-05,2]
[360719963,1746951766347,274.2823627,7.94e-05,2]
[360719964,1746951771135,-299.00468206,8.02e-05,2]
[360719965,1746951778923,260.99956674,8.02e-05,2]
[360719966,1746951781647,299.00468206,7.94e-05,2]
[360719967,1746951783785,300.0,8.019e-05,2]
[360719968,1746951786195,-106.19601403,8.02e-05,2]
[360719969,1746951786220,-90.2816232,8.02e-05,2]
[360719971,1746951797398,196.47763723,7.94e-05,2]
[360719972,1746951842328,300.0,8.019e-05,2]
[360719973,1746951872428,500.0,8.019e-05,2]
[360719974,1746951872464,337.06728735,8.019e-05,2]
[360719975,1746951872535,500.0,8.019e-05,2]
[360719976,1746951872685,500.0,8.019e-05,2]
[360719977,1746951872872,633.96168153,8.019e-05,2]
[360719978,1746951872972,500.0,8.019e-05,2]
[360719979,1746951873190,500.0,8.019e-05,2]
[360719980,1746951873273,500.0,8.019e-05,2]
[360719981,1746951873314,500.0,8.019e-05,2]
[360719982,1746951873376,500.0,8.019e-05,2]
[360719983,1746951873504,500.0,8.019e-05,2]
[360719984,1746951873575,500.0,8.019e-05,2]
[360719985,1746951874164,606.09865994,8.019e-05,2]
[360719986,1746951874203,500.0,8.019e-05,2]
[360719987,1746951874244,500.0,8.019e-05,2]
[360719988,1746951874298,500.0,8.019e-05,2]
[360719989,1746951874339,500.0,8.019e-05,2]
[360719990,1746951874392,481.45000104,8.019e-05,2]
[360719991,1746951874466,500.0,8.019e-05,2]
[360719992,1746951874534,500.0,8.019e-05,2]
[360719993,1746951874587,499.70338686,8.019e-05,2]
[360719994,1746951983338,153.02,0.000216,31]
[360719995,1746951983619,153.02,0.000216,31]
[360719996,1746951983676,153.02,0.000216,31]
[360719997,1746951983720,153.02,0.000199,31]
[360719998,1746951983765,153.02,0.000199,31]
[360719999,1746951983817,153.02,0.000199,31]
[360720000,1746951983871,153.02,0.000199,31]
[360720001,1746951983913,153.02,0.000199,31]
[360720002,1746951983961,153.02,0.000199,31]
[360720003,1746951985700,153.02,0.000216,31]
[360720010,1746952068172,498.0624294,7.098e-05,2]
[360720039,1746952232703,-277.74482076,8.029e-05,2]
[360720040,1746952232714,-188.79184146,8.029e-05,2]
[360720041,1746952232758,-111.20815854,8.029e-05,2]
[360720043,1746952232767,-1200.0,8.029e-05,2]
[360720045,1746952232776,-300.0,8.029e-05,2]
[360720047,1746952232786,-500.0,8.03e-05,2]
[360720048,1746952232795,-235.94710114,8.03e-05,2]
[360720049,1746952232804,-500.0,8.03e-05,2]
[360720050,1746952233008,-500.0,8.03e-05,2]
[360720051,1746952233030,-500.0,8.03e-05,2]
[360720052,1746952233041,-443.77317707,8.03e-05,2]
[360720053,1746952233050,-500.0,8.03e-05,2]
[360720054,1746952233060,-500.0,8.03e-05,2]
[360720055,1746952233069,-500.0,8.03e-05,2]
[360720056,1746952233078,-180.72351325,8.031e-05,2]
[360720057,1746952233090,-219.27648675,8.031e-05,2]
[360720058,1746952233099,-341.74297643,8.031e-05,2]
[360720059,1746952233139,-154.79702357,8.031e-05,2]
[360720060,1746952233148,-400.0,8.031e-05,2]
[360720061,1746952233158,-952.8,8.031e-05,2]
[360720062,1746952233168,-400.0,8.031e-05,2]
[360720063,1746952233178,-1458.75,8.031e-05,2]
[360720064,1746952233188,-29.71402318,8.031e-05,2]
[360720065,1746952233200,-370.28597682,8.031e-05,2]
[360720066,1746952233212,-1740.03,8.031e-05,2]
[360720067,1746952233221,-467.72,8.031e-05,2]
[360720068,1746952233231,-400.0,8.031e-05,2]
[360720069,1746952233240,-400.0,8.031e-05,2]
[360720070,1746952233251,-400.0,8.031e-05,2]
[360720071,1746952233262,-400.0,8.032e-05,2]
[360720072,1746952233273,-400.0,8.032e-05,2]
[360720073,1746952233282,-400.0,8.032e-05,2]
[360720074,1746952233292,-400.0,8.032e-05,2]
[360720075,1746952233301,-400.0,8.032e-05,2]
[360720076,1746952233311,-689.05,8.032e-05,2]
[360720077,1746952233321,-475.68,8.032e-05,2]
[360720078,1746952233330,-400.0,8.032e-05,2]
[360720079,1746952233340,-400.0,8.032e-05,2]
[360720080,1746952233349,-400.0,8.032e-05,2]
[360720081,1746952233358,-400.0,8.032e-05,2]
[360720082,1746952233368,-400.0,8.032e-05,2]
[360720083,1746952233378,-445.35,8.032e-05,2]
[360720084,1746952233388,-505.14,8.032e-05,2]
[360720085,1746952233397,-418.51,8.032e-05,2]
[360720086,1746952233407,-585.39,8.032e-05,2]
[360720087,1746952233416,-400.0,8.032e-05,2]
[360720088,1746952233426,-400.0,8.032e-05,2]
[360720089,1746952233436,-442.28,8.032e-05,2]
[360720090,1746952233445,-400.0,8.032e-05,2]
[360720091,1746952233455,-521.47,8.032e-05,2]
[360720092,1746952233464,-400.0,8.032e-05,2]
[360720093,1746952233473,-400.0,8.032e-05,2]
[360720094,1746952233482,-930.8,8.032e-05,2]
[360720095,1746952233492,-474.57265822,8.032e-05,2]
[360720096,1746952233501,-202.98,8.032e-05,2]
[360720097,1746952233510,-400.0,8.032e-05,2]
[360720098,1746952233520,-400.0,8.032e-05,2]
[360720099,1746952233530,-400.0,8.032e-05,2]
[360720100,1746952233540,-400.0,8.032e-05,2]
[360720101,1746952233549,-400.0,8.032e-05,2]
[360720102,1746952233559,-400.0,8.032e-05,2]
[360720103,1746952233569,-400.0,8.032e-05,2]
[360720104,1746952233578,-426.36839986,8.032e-05,2]
[360720105,1746952233587,-400.0,8.032e-05,2]
[360720106,1746952233597,-432.3,8.032e-05,2]
[360720107,1746952233608,-400.0,8.032e-05,2]
[360720108,1746952233618,-503.89,8.032e-05,2]
[360720109,1746952233628,-400.0,8.032e-05,2]
[360720110,1746952233637,-609.01,8.032e-05,2]
[360720111,1746952233647,-659.47,8.032e-05,2]
[360720112,1746952233656,-400.0,8.032e-05,2]
[360720113,1746952233666,-400.0,8.032e-05,2]
[360720114,1746952233675,-733.3,8.032e-05,2]
[360720115,1746952233685,-400.0,8.032e-05,2]
[360720116,1746952233694,-400.0,8.032e-05,2]
[360720117,1746952233703,-2013.42,8.032e-05,2]
[360720118,1746952233713,-414.75432703,8.032e-05,2]
[360720119,1746952233722,-400.0,8.033e-05,2]
[360720120,1746952233731,-214.49097836,8.033e-05,2]
[360720121,1746952233740,-454.57797068,8.033e-05,2]
[360720122,1746952233750,-232.16695996,8.033e-05,2]
[360720123,1746952233759,-400.0,8.033e-05,2]
[360720124,1746952233768,-402.20233404,8.033e-05,2]
[360720125,1746952233777,-400.93,8.033e-05,2]
[360720126,1746952233787,-400.0,8.033e-05,2]
[360720127,1746952233796,-400.0,8.033e-05,2]
[360720128,1746952233805,-415.32,8.033e-05,2]
[360720129,1746952233814,-400.0,8.033e-05,2]
[360720130,1746952233823,-405.98314686,8.033e-05,2]
[360720131,1746952233832,-404.17676976,8.033e-05,2]
[360720132,1746952233842,-409.1857843,8.033e-05,2]
[360720133,1746952233851,-400.0,8.033e-05,2]
[360720134,1746952233861,-400.0,8.033e-05,2]
[360720135,1746952233871,-400.0,8.033e-05,2]
[360720136,1746952233880,-406.88,8.033e-05,2]
[360720137,1746952233890,-400.0,8.033e-05,2]
[360720138,1746952233899,-400.0,8.033e-05,2]
[360720139,1746952233908,-400.0,8.033e-05,2]
[360720140,1746952233917,-400.0,8.033e-05,2]
[360720141,1746952233926,-400.0,8.033e-05,2]
[360720142,1746952233935,-400.0,8.033e-05,2]
[360720143,1746952233944,-356.6,8.033e-05,2]
[360720144,1746952233955,-400.0,8.033e-05,2]
[360720145,1746952233965,-400.0,8.033e-05,2]
[360720146,1746952233974,-400.0,8.033e-05,2]
[360720147,1746952233983,-400.0,8.033e-05,2]
[360720148,1746952233992,-400.0,8.033e-05,2]
[360720149,1746952234002,-400.0,8.033e-05,2]
[360720150,1746952234011,-400.0,8.033e-05,2]
[360720151,1746952234020,-400.0,8.033e-05,2]
[360720152,1746952234030,-400.0,8.033e-05,2]
[360720153,1746952234040,-400.0,8.033e-05,2]
[360720154,1746952234049,-400.0,8.033e-05,2]
[360720155,1746952234058,-400.0,8.033e-05,2]
[360720156,1746952234067,-400.0,8.033e-05,2]
[360720157,1746952234077,-400.0,8.033e-05,2]
[360720158,1746952234086,-400.0,8.033e-05,2]
[360720159,1746952234096,-401.78,8.033e-05,2]
[360720160,1746952234106,-432.09,8.033e-05,2]
[360720161,1746952234116,-400.0,8.033e-05,2]
[360720162,1746952234126,-400.0,8.033e-05,2]
[360720163,1746952234136,-1262.79,8.033e-05,2]
[360720164,1746952234145,-400.0,8.033e-05,2]
[360720165,1746952234154,-214.8149097,8.033e-05,2]
[360720166,1746952234164,-615.77,8.033e-05,2]
[360720167,1746952234174,-400.0,8.033e-05,2]
[360720168,1746952234184,-400.0,8.033e-05,2]
[360720169,1746952234194,-400.0,8.033e-05,2]
[360720170,1746952234209,-400.0,8.033e-05,2]
[360720171,1746952234218,-400.0,8.033e-05,2]
[360720172,1746952234229,-400.0,8.033e-05,2]
[360720173,1746952234238,-400.0,8.033e-05,2]
[360720174,1746952234249,-400.0,8.033e-05,2]
[360720175,1746952234259,-400.0,8.033e-05,2]
[360720176,1746952234269,-400.0,8.033e-05,2]
[360720177,1746952234279,-390.76094551,8.033e-05,2]
[360720178,1746952234289,-400.0,8.033e-05,2]
[360720179,1746952234299,-400.0,8.033e-05,2]
[360720180,1746952234309,-400.0,8.034e-05,2]
[360720181,1746952234319,-400.0,8.034e-05,2]
[360720182,1746952234329,-520.83007616,8.034e-05,2]
[360720183,1746952234338,-400.0,8.034e-05,2]
[360720184,1746952234349,-997.64,8.034e-05,2]
[360720185,1746952234359,-400.0,8.034e-05,2]
[360720186,1746952234370,-400.0,8.034e-05,2]
[360720187,1746952234379,-400.0,8.034e-05,2]
[360720188,1746952234390,-916.24,8.034e-05,2]
[360720189,1746952234400,-400.0,8.034e-05,2]
[360720190,1746952234410,-400.0,8.034e-05,2]
[360720191,1746952234420,-400.0,8.034e-05,2]
[360720192,1746952234431,-400.0,8.034e-05,2]
[360720193,1746952234441,-400.0,8.034e-05,2]
[360720194,1746952234452,-400.0,8.034e-05,2]
[360720195,1746952234461,-400.0,8.034e-05,2]
[360720196,1746952234471,-400.0,8.034e-05,2]
[360720197,1746952234480,-400.0,8.034e-05,2]
[360720198,1746952234490,-400.0,8.034e-05,2]
[360720199,1746952234499,-400.0,8.034e-05,2]
[360720200,1746952234509,-400.0,8.036e-05,2]
[360720201,1746952234519,-151.0,8.065e-05,2]
[360720202,1746952234531,-40154.72483853,8.07e-05,2]
[360720203,1746952234704,-467.09929999,8.07e-05,2]
[360720214,1746952238594,-165.1629708,8.029e-05,2]
[360720215,1746952238603,-500.0,8.029e-05,2]
[360720216,1746952238613,-500.0,8.029e-05,2]
[360720217,1746952238623,-500.0,8.029e-05,2]
[360720218,1746952238633,-500.0,8.029e-05,2]
[360720219,1746952238642,-260.64122395,8.029e-05,2]
[360720220,1746952238652,-500.0,8.029e-05,2]
[360720221,1746952238661,-400.0,8.033e-05,2]
[360720222,1746952238670,-541.41490749,8.07e-05,2]
[360720223,1746952238689,-338.27778723,8.07e-05,2]
[360720224,1746952238701,-1063.34048912,8.07e-05,2]
[360720225,1746952238719,-4093.56,8.07e-05,2]
[360720226,1746952238733,-10379.9854797,8.07e-05,2]
[360720228,1746952238749,-2346.93890176,8.07e-05,2]
[360720229,1746952238760,-1843.21670534,8.07e-05,2]
[360720530,1746952243846,-400.0,8.031e-05,2]
[360720531,1746952243856,-36487.85787466,8.07e-05,2]
[360720532,1746952243867,-17377.0,8.07e-05,2]
[360720533,1746952243879,-7251.3114487,8.07e-05,2]
[360720546,1746952246818,-438.08,8.031e-05,2]
[360720547,1746952246828,-660.34,8.031e-05,2]
[360720548,1746952246839,-400.0,8.032e-05,2]
[360720550,1746952246848,-400.0,8.032e-05,2]
[360720552,1746952246858,-400.0,8.033e-05,2]
[360720553,1746952246868,-547.039,8.07e-05,2]
[360720555,1746952246877,-631.341,8.07e-05,2]
[360720557,1746952246889,-20902.16646161,8.07e-05,2]
[360720564,1746952464426,50033.0,0.00022,30]
[360720566,1746952585813,153.11,0.000216,31]
[360720567,1746952585865,153.11,0.000216,31]
[360720568,1746952585921,153.11,0.000199,31]
[360720569,1746952585990,153.11,0.000199,31]
[360720570,1746952586052,153.11,0.000199,31]
[360720571,1746952644671,500.0,0.00022,30]
[360720573,1746952770854,420.75,0.00022,30]
[360720575,1746952845722,500.0,0.00022,30]
[360720578,1746953019301,250.64636734,7.94e-05,2]
[360720579,1746953074634,24832.0,7.397e-05,2]
[360720581,1746953186579,-492.0,8.024e-05,2]
[360720582,1746953186604,-300.0,8.024e-05,2]
[360720583,1746953186629,-500.0,8.024e-05,2]
[360720584,1746953186653,-304.06831266,8.024e-05,2]
[360720585,1746953186677,-500.0,8.024e-05,2]
[360720586,1746953186701,-500.0,8.024e-05,2]
[360720587,1746953186724,-632.10392714,8.024e-05,2]
[360720588,1746953186747,-400.0,8.028e-05,2]
[360720589,1746953186770,-400.0,8.028e-05,2]
[360720590,1746953186793,-400.0,8.028e-05,2]
[360720591,1746953186817,-913.1,8.028e-05,2]
[360720592,1746953186840,-400.0,8.028e-05,2]
[360720593,1746953186862,-412.87686641,8.028e-05,2]
[360720594,1746953186886,-1667.52,8.028e-05,2]
[360720595,1746953186909,-1397.97,8.028e-05,2]
[360720596,1746953186932,-400.0,8.028e-05,2]
[360720597,1746953186957,-400.0,8.028e-05,2]
[360720598,1746953186981,-448.23,8.028e-05,2]
[360720599,1746953187004,-394.11697608,8.028e-05,2]
[360720600,1746953187027,-408.05812023,8.028e-05,2]
[360720601,1746953187051,-274.88714013,8.029e-05,2]
[360720602,1746953187075,-504.97,8.029e-05,2]
[360720603,1746953187096,-400.91754083,8.029e-05,2]
[360720604,1746953187119,-402.20379809,8.029e-05,2]
[360720605,1746953187141,-400.88976573,8.029e-05,2]
[360720606,1746953187162,-285.65456732,8.029e-05,2]
[360720607,1746953187185,-400.78743135,8.029e-05,2]
[360720608,1746953187209,-400.0,8.029e-05,2]
[360720609,1746953187232,-539.65,8.029e-05,2]
[360720610,1746953187255,-400.0,8.029e-05,2]
[360720611,1746953187280,-431.28407692,8.029e-05,2]
[360720612,1746953187303,-400.0,8.029e-05,2]
[360720613,1746953187326,-401.87936996,8.029e-05,2]
[360720614,1746953187349,-400.0,8.029e-05,2]
[360720615,1746953187373,-400.13123719,8.029e-05,2]
[360720616,1746953187397,-400.0,8.029e-05,2]
[360720617,1746953187420,-400.0,8.029e-05,2]
[360720618,1746953187446,-400.0,8.029e-05,2]
[360720619,1746953187470,-400.0,8.029e-05,2]
[360720620,1746953187498,-400.0,8.029e-05,2]
[360720621,1746953187524,-455.86,8.029e-05,2]
[360720622,1746953187551,-553.71,8.029e-05,2]
[360720623,1746953187576,-400.0,8.029e-05,2]
[360720624,1746953187599,-400.0,8.029e-05,2]